{"text_format":"1","workbook":"xlsx","n_sheets":1,"sheets":["Utility"],"not_rendered":{"charts":0,"images":3,"macros":1,"external_links":1,"defined_names":2,"comments":0,"pivot_tables":0},"unopened":[],"bounds":{"document_bytes":16777216,"sheet_cells":100000,"rows_first":2000,"rows_last":500,"rows_between":2000,"halvings":0,"cell_chars":16384,"cell_head_chars":4096},"cells_cut":0,"cells_raw":0,"read":"whole","date_system":"1900"}

{"sheet":"Utility","index":0,"n_rows":53,"n_cols":11,"rows_kept":53,"cut":false,"hidden":false,"merged":[]}
[]
[]
[]
[]
[]
[]
[null,"   Output Commodity Name (optional)",null,"π","ξ",null,"code: I, H, G, or F",null,null,null,"ζ"]
[]
[]
[null,"   Input Commodity Names (optional)",null,"P(J)","Q(J)","J","U(J)",null,"η",null,"Z"]
[null,null,null,null,null,1]
[null,null,null,null,null,{"$f":"1+F11","v":2}]
[null,null,null,null,null,3]
[null,null,null,null,null,4]
[null,null,null,null,null,5]
[null,null,null,null,null,6]
[null,null,null,null,null,7]
[null,null,null,null,null,8]
[null,null,null,null,null,9]
[null,null,null,null,null,10]
[null,null,null,null,null,11]
[null,null,null,null,null,12]
[null,null,null,null,null,13]
[null,null,null,null,null,14]
[null,null,null,null,null,15]
[null,null,null,null,null,16]
[null,null,null,null,null,17]
[null,null,null,null,null,18]
[null,null,null,null,null,19]
[null,null,null,null,null,20]
[null,null,null,null,null,21]
[null,null,null,null,null,22]
[null,null,null,null,null,23]
[null,null,null,null,null,24]
[null,null,null,null,null,25]
[null,null,null,null,null,26]
[null,null,null,null,null,27]
[null,null,null,null,null,28]
[null,null,null,null,null,29]
[null,null,null,null,null,30]
[null,null,null,null,null,31]
[null,null,null,null,null,32]
[null,null,null,null,null,33]
[null,null,null,null,null,34]
[null,null,null,null,null,35]
[null,null,null,null,null,36]
[null,null,null,null,null,37]
[null,null,null,null,null,38]
[null,null,null,null,null,39]
[null,null,null,null,null,40]
[]
[]
[null,null,"Instructions at:","https://www.youtube.com/watch?v=JvL60-7CcWc"]